bitfinex-derivatives/quotes_BTCF0:USTF0_20240923
["timestamp","ask_amount","ask_price","bid_price","bid_amount"]
[1727061655241,0.19,64531.0,64523.0,0.12274787]
[1727061655511,0.129,64532.0,64526.0,0.04525387]
[1727061655725,0.129,64532.0,64527.0,0.04525387]
[1727061655910,0.19,64530.0,64529.0,0.04525387]
[1727061656115,0.267487,64530.0,64529.0,0.04525387]
[1727061656313,0.19,64530.0,64525.0,0.04506712]
[1727061656511,0.077493,64525.0,64523.0,0.04606712]
[1727061656712,0.19,64524.0,64523.0,0.04606712]
[1727061657125,0.19,64524.0,64523.0,0.23482329]
[1727061657312,0.19,64524.0,64523.0,0.29532072]
[1727061658018,0.65496,64524.0,64523.0,0.04513324]
[1727061658318,0.077495,64523.0,64522.0,0.04513324]
[1727061658525,0.077495,64523.0,64520.0,0.06049743]
[1727061658825,0.19,64524.0,64521.0,0.06049743]
[1727061659120,0.19,64524.0,64522.0,0.06049743]
[1727061659421,0.19,64524.0,64520.0,0.07576932]
[1727061659624,0.19,64524.0,64520.0,0.07676932]
[1727061659922,0.19,64524.0,64522.0,0.001]
[1727061660311,0.19,64524.0,64522.0,0.07676932]
[1727061660516,0.077495,64523.0,64522.0,0.07576932]
[1727061660818,0.19,64524.0,64520.0,0.002]
[1727061660819,0.077496,64522.0,64521.0,0.07576932]
[1727061661133,0.077496,64522.0,64521.0,0.18233486]
[1727061661417,0.077496,64522.0,64521.0,0.10656554]
[1727061662722,0.077496,64522.0,64521.0,0.10756554]
[1727061662918,0.37574231,64526.0,64521.0,0.10856554]
[1727061663225,0.3608,64526.0,64522.0,0.19729717]
[1727061663417,0.3608,64526.0,64525.0,0.16814208]
[1727061663615,0.01538584,64534.0,64525.0,0.23345941]
[1727061663820,0.01538584,64534.0,64530.0,0.09062424]
[1727061664018,0.077484,64532.0,64531.0,0.10656554]
[1727061664232,0.542364,64532.0,64531.0,0.10656554]
[1727061664518,1.142364,64532.0,64531.0,0.10656554]
[1727061665118,1.332364,64532.0,64531.0,0.10656554]
[1727061665421,0.267484,64532.0,64531.0,0.10656554]
[1727061665824,1.332364,64532.0,64531.0,0.10656554]
[1727061666118,0.732364,64532.0,64531.0,0.10656554]
[1727061666424,0.077484,64532.0,64531.0,0.10656554]
[1727061666637,0.267484,64532.0,64531.0,0.19718978]
[1727061666926,0.077484,64532.0,64531.0,0.10856554]
[1727061667131,0.267484,64532.0,64531.0,0.10856554]
[1727061667324,0.267484,64532.0,64531.0,0.19918978]
[1727061667515,0.19,64532.0,64531.0,0.10856554]
[1727061668212,0.19,64532.0,64531.0,0.10833855]
[1727061669018,0.19,64532.0,64531.0,0.23515817]
[1727061669720,0.13572989,64532.0,64531.0,0.23515817]
[1727061669923,0.19,64537.0,64531.0,0.4666041]
[1727061670226,0.077479,64537.0,64532.0,0.23315817]
[1727061670443,0.35123496,64533.0,64532.0,0.23315817]
[1727061670622,0.35123496,64533.0,64532.0,0.46625697]
[1727061671330,0.42871796,64533.0,64532.0,0.46625697]
[1727061671629,0.42871796,64533.0,64532.0,0.23315817]
[1727061671825,0.42871796,64533.0,64532.0,0.10633855]
[1727061672215,0.42871796,64533.0,64532.0,0.23374615]
[1727061672420,0.42871796,64533.0,64532.0,0.10733855]
[1727061672623,0.42871796,64533.0,64532.0,0.10715312]
[1727061672928,0.35123496,64533.0,64532.0,0.10715312]
[1727061673229,0.16123496,64533.0,64532.0,0.23458011]
[1727061673430,0.11471585,64533.0,64532.0,0.23458011]
[1727061673935,0.30471585,64533.0,64532.0,0.23458011]
[1727061674431,0.11471585,64533.0,64532.0,0.23458011]
[1727061675026,0.11471585,64533.0,64532.0,0.46584656]
[1727061675430,0.30471585,64533.0,64532.0,0.46584656]
[1727061675634,0.11471585,64533.0,64532.0,0.46584656]
[1727061676221,0.11471585,64533.0,64532.0,1.53072656]
[1727061676424,0.1316,64553.0,64533.0,0.46488]
[1727061676425,0.3608,64541.0,64533.0,0.46488]
[1727061676631,0.3608,64550.0,64540.0,0.3608]
[1727061676829,0.3608,64550.0,64544.0,0.09075084]
[1727061677034,0.3608,64550.0,64546.0,0.09075084]
[1727061677331,0.3608,64560.0,64551.0,0.077461]
[1727061677522,0.3608,64560.0,64547.0,0.55586767]
[1727061677523,0.3608,64560.0,64555.0,0.09075084]
[1727061677717,0.3608,64560.0,64547.0,0.42362865]
[1727061677718,0.3608,64560.0,64556.0,0.19690396]
[1727061677928,0.3608,64560.0,64557.0,0.10615312]
[1727061678121,0.3608,64560.0,64555.0,0.08429085]
[1727061678323,0.077462,64551.0,64550.0,0.07551746]
[1727061678519,0.19,64551.0,64540.0,0.001]
[1727061678726,0.3608,64554.0,64540.0,0.001]
[1727061678727,0.3608,64547.0,64540.0,0.001]
[1727061678940,0.19,64547.0,64540.0,0.001]
[1727061679123,0.19,64554.0,64544.0,0.3608]
[1727061679527,0.19,64554.0,64545.0,0.1307]
[1727061681323,0.077455,64557.0,64545.0,0.1307]
[1727061681324,0.19,64548.0,64545.0,0.1307]
[1727061681631,0.19,64547.0,64545.0,0.1307]
[1727061682148,0.19,64547.0,64545.0,0.003]
[1727061682838,0.19,64547.0,64544.0,0.004]
[1727061682839,0.077468,64546.0,64544.0,0.004]
[1727061683033,0.211668,64546.0,64545.0,0.006]
[1727061683335,0.401668,64546.0,64545.0,0.006]
[1727061683839,0.401668,64546.0,64545.0,0.003]
[1727061684625,0.077469,64545.0,64534.0,0.3608]
[1727061684828,0.3608,64556.0,64541.0,0.3608]
[1727061685032,0.077466,64548.0,64541.0,0.3608]
[1727061685240,0.077466,64548.0,64545.0,0.001]
[1727061685630,0.077466,64548.0,64545.0,0.002]
[1727061685840,0.3608,64556.0,64547.0,0.3608]
[1727061686030,0.3608,64556.0,64548.0,0.132]
[1727061688542,0.19,64552.0,64548.0,0.001]
[1727061688735,0.077457,64555.0,64548.0,0.001]
[1727061688940,0.3608,64556.0,64548.0,0.3618]
[1727061689137,0.3608,64556.0,64548.0,0.3628]
[1727061690133,0.19,64552.0,64548.0,0.002]
[1727061690337,0.3608,64550.0,64533.0,0.36312356]
[1727061690540,0.19,64542.0,64533.0,0.36312356]
[1727061690929,0.19,64535.0,64533.0,0.36312356]
[1727061691131,0.267482,64535.0,64533.0,0.36312356]
[1727061691334,0.1366,64534.0,64533.0,0.36312356]
[1727061691542,0.077473,64542.0,64533.0,0.36312356]
[1727061691839,0.19,64546.0,64533.0,0.36312356]
[1727061691840,0.077469,64545.0,64533.0,0.36312356]
[1727061692034,0.077469,64545.0,64533.0,0.36912356]
[1727061692434,0.077469,64545.0,64533.0,0.37512356]
[1727061692629,0.19,64546.0,64533.0,0.37512356]
[1727061692835,0.077472,64543.0,64533.0,0.37512356]
[1727061693036,0.3608,64542.0,64533.0,0.37512356]
[1727061693231,0.3608,64542.0,64533.0,0.36912356]
[1727061693445,0.3608,64542.0,64533.0,0.37512356]
[1727061693736,0.077475,64540.0,64533.0,0.37512356]
[1727061693935,0.077478,64538.0,64533.0,0.3728]
[1727061694336,0.3608,64542.0,64533.0,0.3728]
[1727061694831,0.077474,64541.0,64533.0,0.3728]
[1727061695037,0.077474,64541.0,64533.0,0.3668]
[1727061695247,0.3608,64542.0,64533.0,0.3728]
[1727061695431,0.19,64541.0,64533.0,0.3668]
[1727061696042,0.077482,64535.0,64533.0,0.3678]
[1727061696235,0.19,64541.0,64533.0,0.3678]
[1727061696236,0.077474,64541.0,64533.0,0.3678]
[1727061696439,0.077475,64540.0,64533.0,0.3618]
[1727061696732,0.5508,64535.0,64516.0,0.3608]
[1727061696938,0.077497,64522.0,64516.0,0.3608]
[1727061697442,0.0775,64519.0,64516.0,0.3608]
[1727061697949,0.00785678,64525.0,64516.0,0.3608]
[1727061697950,0.077501,64518.0,64516.0,0.3608]
[1727061698140,0.077508,64512.0,64510.0,0.3608]
[1727061698445,0.03872909,64512.0,64510.0,0.3608]
[1727061699240,0.2573,64517.0,64510.0,0.3608]
[1727061699441,0.077505,64515.0,64510.0,0.3638]
[1727061699641,0.2573,64517.0,64510.0,0.3638]
[1727061699849,0.002,64512.0,64510.0,0.3638]
[1727061700166,0.1336,64514.0,64510.0,0.3638]
[1727061700748,0.1336,64514.0,64502.0,0.3608]
[1727061700749,0.19,64511.0,64502.0,0.3608]
[1727061700957,0.19,64511.0,64497.0,0.3608]
[1727061700958,0.077525,64499.0,64497.0,0.3608]
[1727061701245,0.19,64503.0,64489.0,0.36168]
[1727061701246,0.1282,64498.0,64489.0,0.36168]
[1727061701556,0.1282,64498.0,64489.0,0.3608]
[1727061701557,0.19,64493.0,64489.0,0.3608]
[1727061701844,0.077534,64491.0,64489.0,0.3608]
[1727061702037,0.08515784,64491.0,64489.0,0.3608]
[1727061702539,0.274,64497.0,64489.0,0.3678]
[1727061703057,0.274,64497.0,64489.0,0.3618]
[1727061703345,0.001,64491.0,64489.0,0.3618]
[1727061703752,0.1404,64501.0,64491.0,0.049]
[1727061704048,0.1298,64505.0,64496.0,0.3608]
[1727061704238,0.1298,64505.0,64502.0,0.3608]
[1727061704848,0.077511,64510.0,64502.0,0.3608]
[1727061705146,0.077511,64510.0,64496.0,0.3608]
[1727061705335,0.006,64505.0,64496.0,0.3608]
[1727061705542,0.07752,64503.0,64496.0,0.3608]
[1727061705741,0.006,64505.0,64502.0,0.3608]
[1727061705957,0.006,64505.0,64502.0,0.3618]
[1727061706247,0.438315,64507.0,64502.0,0.001]
[1727061706461,0.1298,64511.0,64502.0,0.002]
[1727061706462,0.006,64505.0,64502.0,0.002]
[1727061706743,0.006,64505.0,64502.0,0.3628]
[1727061706948,0.006,64505.0,64502.0,0.3618]
[1727061707152,0.006,64505.0,64503.0,0.23393123]
[1727061708344,0.6254,64520.0,64503.0,0.23393123]
[1727061708653,0.002,64507.0,64503.0,0.23393123]
[1727061709038,0.002,64505.0,64503.0,0.23493123]
[1727061709239,0.0775,64519.0,64504.0,0.19]
[1727061709536,0.00088,64520.0,64518.0,0.3608]
[1727061709748,0.002,64520.0,64518.0,0.3608]
[1727061710337,0.002,64520.0,64518.0,0.438301]
[1727061710537,0.208687,64530.0,64518.0,0.438301]
[1727061710538,0.077487,64530.0,64519.0,0.42131225]
[1727061710741,0.077487,64530.0,64529.0,0.3608]
[1727061710940,0.07748,64536.0,64524.0,0.3608]
[1727061711243,0.19,64538.0,64531.0,0.3608]
[1727061711244,0.0149566,64538.0,64531.0,0.3608]
[1727061711443,0.2652,64541.0,64531.0,0.3608]
[1727061711444,0.077482,64535.0,64531.0,0.3608]
[1727061712055,0.2652,64541.0,64531.0,0.3608]
[1727061712349,0.1312,64541.0,64532.0,0.267484]
[1727061712551,0.077473,64542.0,64537.0,0.3608]
[1727061714447,0.077473,64542.0,64537.0,0.3628]
[1727061715043,0.077473,64542.0,64537.0,0.3648]
[1727061715641,0.00232541,64543.0,64541.0,0.077473]
[1727061715845,0.00232541,64543.0,64539.0,0.19]
[1727061715846,0.632,64563.0,64539.0,0.19]
[1727061716052,0.19,64560.0,64550.0,0.3608]
[1727061716352,0.07746,64552.0,64550.0,0.3608]
[1727061716945,0.37558942,64557.0,64550.0,0.3608]
[1727061717153,0.37558942,64557.0,64551.0,0.1402]
[1727061718045,0.37558942,64557.0,64551.0,0.217661]
[1727061718254,0.37558942,64557.0,64551.0,0.1402]
[1727061718453,0.37558942,64557.0,64551.0,0.1412]
[1727061719058,0.37558942,64557.0,64551.0,0.1422]
[1727061719357,0.077458,64554.0,64551.0,0.1422]
[1727061719656,0.37558942,64557.0,64551.0,0.1422]
[1727061719657,0.26746,64553.0,64551.0,0.002]
[1727061720243,0.07746,64553.0,64551.0,0.002]
[1727061720451,0.37558942,64557.0,64551.0,0.002]
[1727061721458,0.19,64552.0,64551.0,0.002]
[1727061721664,0.26746,64552.0,64551.0,0.002]
[1727061721962,0.077469,64545.0,64533.0,0.077482]
[1727061722164,0.077469,64545.0,64534.0,0.077482]
[1727061722351,0.628263,64551.0,64535.0,0.077481]
[1727061722551,0.077464,64549.0,64536.0,0.07980326]
[1727061722856,1.63528,64552.0,64544.0,0.3608]
[1727061723060,0.37558942,64557.0,64544.0,0.3608]
[1727061723061,0.37654942,64557.0,64550.0,0.3608]
[1727061723358,0.37558942,64557.0,64550.0,0.3608]
[1727061723654,0.37558942,64557.0,64551.0,0.141]
[1727061723854,0.37558942,64557.0,64551.0,0.142]
[1727061724351,0.37558942,64557.0,64551.0,0.141]
[1727061725157,0.37558942,64557.0,64551.0,0.142]
[1727061725463,0.37558942,64557.0,64553.0,0.267458]
[1727061725755,0.37758942,64557.0,64555.0,0.077456]
[1727061726558,0.00811726,64577.0,64556.0,1.22173036]
[1727061726859,1e-08,64577.0,64576.0,0.5508]
[1727061727049,1e-08,64577.0,64576.0,1.01536]
[1727061727249,1e-08,64577.0,64576.0,1.692792]
[1727061727760,1e-08,64577.0,64576.0,1.03487889]
[1727061727951,0.3608,64607.0,64577.0,0.46452]
[1727061728152,0.3608,64607.0,64597.0,0.3608]
[1727061728153,0.077405,64599.0,64597.0,0.3608]
[1727061728353,0.3608,64607.0,64597.0,0.3608]
[1727061728553,0.0774,64603.0,64598.0,0.23272367]
[1727061728759,0.0774,64603.0,64600.0,0.00212604]
[1727061729057,0.0774,64603.0,64601.0,0.2336917]
[1727061729561,0.0774,64603.0,64600.0,0.00212604]
[1727061729760,0.16817763,64602.0,64598.0,0.001]
[1727061729968,0.16817763,64601.0,64600.0,0.001]
[1727061730184,0.16817763,64601.0,64600.0,0.00053925]
[1727061730655,0.0612176,64601.0,64600.0,0.00053925]
[1727061730854,0.0361178,64601.0,64600.0,0.00053925]
[1727061731062,0.10696003,64606.0,64600.0,0.00053925]
[1727061731063,0.0612176,64603.0,64600.0,0.00053925]
[1727061731256,0.0612176,64602.0,64600.0,0.00053925]
[1727061731456,0.0612176,64601.0,64600.0,0.00053925]
[1727061731665,0.10696003,64610.0,64600.0,1.06493925]
[1727061731876,0.09155615,64603.0,64600.0,0.00053925]
[1727061732165,0.7216,64601.0,64586.0,0.3608]
[1727061732366,0.13695365,64603.0,64585.0,0.3608]
[1727061732367,0.09162358,64588.0,64585.0,0.3608]
[1727061732664,0.19,64599.0,64585.0,0.3608]
[1727061732665,0.09162358,64597.0,64587.0,0.42290302]
[1727061732858,0.0774,64602.0,64596.0,0.3608]
[1727061732859,0.09162358,64599.0,64596.0,0.3608]
[1727061733060,0.0774,64602.0,64600.0,0.001]
[1727061733061,0.01520289,64602.0,64600.0,0.001]
[1727061733257,0.077397,64606.0,64600.0,0.001]
[1727061733258,0.03504362,64601.0,64600.0,0.001]
[1727061733459,0.36168,64608.0,64600.0,0.191]
[1727061733662,0.03513049,64607.0,64603.0,0.3608]
[1727061733966,0.03516282,64606.0,64603.0,0.3608]
[1727061734164,0.3608,64616.0,64603.0,0.3608]
[1727061734165,0.09159329,64604.0,64603.0,0.3608]
[1727061734363,0.3608,64616.0,64603.0,0.3608]
[1727061734364,0.09159329,64605.0,64603.0,0.3608]
[1727061734668,0.3608,64616.0,64603.0,0.3608]
[1727061734669,0.09159329,64607.0,64603.0,0.3608]
[1727061734856,0.09159329,64606.0,64603.0,0.3608]
[1727061735052,0.09159329,64606.0,64605.0,0.19]
[1727061735464,0.09159329,64608.0,64605.0,1.25436]
[1727061735662,0.01532577,64616.0,64607.0,0.19]
[1727061735856,0.078259,64621.0,64615.0,0.3608]
[1727061736058,0.077379,64621.0,64615.0,0.3608]
[1727061736257,0.07738,64620.0,64615.0,0.3608]
[1727061736654,0.07738,64620.0,64615.0,0.5508]
[1727061737064,0.07738,64620.0,64615.0,0.5518]
[1727061737574,0.01478744,64627.0,64615.0,0.5518]
[1727061737771,0.077375,64624.0,64615.0,0.5518]
[1727061737957,0.077376,64623.0,64615.0,0.5518]
[1727061738157,0.001,64620.0,64615.0,0.5528]
[1727061738362,0.077383,64617.0,64615.0,0.3628]
[1727061738869,0.82508,64616.0,64597.0,0.0078]
[1727061739172,0.077402,64601.0,64599.0,0.3608]
[1727061739670,0.3608,64607.0,64599.0,0.3608]
[1727061739671,0.2668,64606.0,64599.0,0.3608]
[1727061739969,0.077403,64600.0,64599.0,0.3608]
[1727061740163,0.077407,64597.0,64592.0,0.3608]
[1727061740363,0.4568,64606.0,64592.0,0.7216]
[1727061740667,0.077398,64605.0,64599.0,0.3608]
[1727061740869,0.2668,64606.0,64600.0,0.19]
[1727061741060,0.1357,64606.0,64605.0,0.3608]
[1727061741260,1.50088,64609.0,64605.0,0.3608]
[1727061741464,1.5,64609.0,64605.0,0.3608]
[1727061741867,0.077394,64607.0,64605.0,0.3608]
[1727061742166,0.002,64606.0,64605.0,0.3608]
[1727061742366,0.002,64606.0,64599.0,0.3608]
[1727061742367,0.001,64601.0,64599.0,0.001]
[1727061743068,0.077406,64598.0,64592.0,0.3608]
[1727061743371,0.3608,64596.0,64582.0,0.3608]
[1727061743570,0.077414,64591.0,64582.0,0.3608]
[1727061743867,0.077422,64584.0,64582.0,0.3608]
[1727061744173,0.077422,64584.0,64574.0,0.19]
[1727061744174,0.3608,64583.0,64569.0,0.3608]
[1727061744472,0.3608,64577.0,64569.0,0.59327113]
[1727061744676,0.19,64573.0,64569.0,0.59327113]
[1727061744967,0.077444,64566.0,64561.0,0.3608]
[1727061745191,0.3608,64570.0,64561.0,0.3608]
[1727061745360,0.077448,64563.0,64561.0,0.3608]
[1727061745564,0.077448,64563.0,64551.0,0.42040908]
[1727061745565,0.19,64562.0,64551.0,0.42040908]
[1727061745870,0.5508,64556.0,64545.0,0.05960908]
[1727061746174,0.3608,64563.0,64532.0,0.0078]
[1727061746175,0.3608,64546.0,64532.0,0.0078]
[1727061746476,0.077492,64526.0,64519.0,0.0078]
[1727061746673,0.7216,64533.0,64517.0,0.00232455]
[1727061746674,0.3608,64525.0,64517.0,0.00232455]
[1727061747570,0.3608,64533.0,64522.0,0.29]
[1727061748077,0.001,64525.0,64517.0,0.00232455]
[1727061748270,0.001,64525.0,64523.0,0.2314448]
[1727061748577,0.001,64525.0,64522.0,0.5922448]
[1727061748781,0.002,64525.0,64524.0,0.23221321]
[1727061749075,0.002,64525.0,64523.0,0.23221321]
[1727061749266,0.002,64525.0,64522.0,0.3608]
[1727061749462,0.002,64525.0,64523.0,0.23221321]
[1727061749777,0.001,64525.0,64523.0,0.23421321]
[1727061750270,0.077488,64530.0,64523.0,0.23421321]
[1727061750271,0.077489,64529.0,64523.0,0.23421321]
[1727061750485,0.077489,64529.0,64523.0,0.59501321]
[1727061750774,0.3608,64525.0,64523.0,0.002]
[1727061750975,0.438294,64525.0,64523.0,0.004]
[1727061751174,0.3608,64525.0,64523.0,0.294]
[1727061751369,0.3608,64533.0,64523.0,0.004]
[1727061751370,0.3608,64527.0,64523.0,0.004]
[1727061751569,0.3608,64527.0,64523.0,0.003]
[1727061751970,0.3608,64527.0,64523.0,0.001]
[1727061752284,0.077494,64524.0,64523.0,0.003]
[1727061752586,0.077506,64514.0,64509.0,0.3608]
[1727061752775,0.077508,64513.0,64503.0,0.29]
[1727061753078,0.077508,64513.0,64510.0,0.23286734]
[1727061753267,0.077508,64513.0,64504.0,0.23286734]
[1727061753268,0.077509,64512.0,64504.0,0.23286734]
[1727061753573,0.077508,64513.0,64503.0,0.29]
[1727061753574,0.077505,64515.0,64508.0,0.23286734]
[1727061753791,0.3608,64509.0,64508.0,0.23286734]
[1727061753966,0.3608,64509.0,64496.0,0.3608]
[1727061754673,0.438307,64514.0,64497.0,0.23332639]
[1727061754878,0.3608,64514.0,64508.0,0.001]
[1727061755080,0.077512,64510.0,64508.0,0.001]
[1727061755282,0.6508,64514.0,64490.0,0.0078]
[1727061755283,0.6508,64509.0,64490.0,0.0078]
[1727061755572,0.3608,64499.0,64491.0,0.23179915]
[1727061755774,0.077528,64496.0,64491.0,0.23179915]
[1727061755969,0.3608,64499.0,64489.0,0.3608]
[1727061756370,0.3608,64497.0,64489.0,0.3608]
[1727061756578,0.3608,64497.0,64490.0,0.012]
[1727061757176,0.3608,64497.0,64496.0,0.008]
[1727061757771,0.3608,64497.0,64490.0,0.015]
[1727061757772,0.28322275,64497.0,64490.0,0.015]
[1727061758080,0.28322275,64497.0,64493.0,0.29]
[1727061758376,0.005,64497.0,64494.0,0.23159603]
[1727061759679,0.077517,64505.0,64496.0,0.3608]
[1727061759980,0.077517,64505.0,64502.0,0.3608]
[1727061760186,0.3608,64510.0,64502.0,0.3608]
[1727061760187,0.077518,64504.0,64502.0,0.3608]
[1727061760477,0.001,64497.0,64496.0,0.077527]
[1727061760670,0.003,64497.0,64496.0,0.438327]
[1727061760872,0.003,64497.0,64496.0,0.67169557]
[1727061761071,0.001,64497.0,64496.0,0.67169557]
[1727061761674,0.001,64497.0,64496.0,0.59416857]
[1727061761876,0.3708,64505.0,64490.0,0.3608]
[1727061762080,0.077533,64492.0,64490.0,0.3608]
[1727061763574,0.077533,64492.0,64490.0,0.3638]
[1727061763977,0.29,64508.0,64490.0,0.3638]
[1727061763978,0.077525,64498.0,64491.0,0.23234461]
[1727061764179,0.077518,64505.0,64497.0,0.3608]
[1727061764682,0.3608,64507.0,64497.0,0.3608]
[1727061764873,0.077518,64505.0,64501.0,0.3608]
[1727061765374,0.077518,64505.0,64502.0,0.23212023]
[1727061765570,0.077518,64504.0,64502.0,0.23212023]
[1727061765870,0.07751,64511.0,64504.0,0.077518]
[1727061766074,0.07751,64511.0,64503.0,0.29]
[1727061766075,0.07751,64511.0,64509.0,0.3608]
[1727061766310,0.077512,64510.0,64508.0,0.3608]
[1727061766580,0.07752,64502.0,64501.0,0.3638]
[1727061766791,0.07752,64502.0,64501.0,0.3608]
[1727061767174,0.001,64507.0,64500.0,0.3608]
[1727061767379,0.001,64507.0,64506.0,0.3608]
[1727061767577,0.077514,64508.0,64506.0,0.3608]
[1727061768278,0.077514,64508.0,64504.0,0.077517]
[1727061768583,0.077514,64508.0,64507.0,0.3608]
[1727061768771,0.077508,64513.0,64507.0,0.5508]
[1727061768978,0.00232616,64519.0,64507.0,0.5508]
[1727061769172,0.00232616,64519.0,64514.0,0.3608]
[1727061769771,0.077504,64516.0,64514.0,0.3608]
[1727061770082,0.00232616,64519.0,64507.0,0.5516]
[1727061770083,0.00532616,64519.0,64507.0,0.5516]
[1727061770287,0.00532616,64519.0,64507.0,0.3608]
[1727061770584,0.077505,64515.0,64514.0,0.001]
[1727061771089,0.01632616,64519.0,64514.0,0.001]
[1727061771381,0.00532616,64519.0,64514.0,0.19]
[1727061771590,0.021,64516.0,64514.0,0.192]
[1727061771884,0.3608,64530.0,64515.0,0.69835094]
[1727061772092,0.3608,64530.0,64529.0,0.19]
[1727061772384,0.3608,64543.0,64530.0,0.077486]
[1727061773088,0.3608,64543.0,64529.0,0.55168]
[1727061773383,0.014,64530.0,64529.0,0.5518]
[1727061773599,0.014,64530.0,64529.0,0.65067165]
[1727061774083,0.3608,64543.0,64530.0,0.077486]
[1727061774283,0.077475,64540.0,64538.0,0.3608]
[1727061774484,0.077475,64540.0,64535.0,0.5508]
[1727061774695,0.3638,64543.0,64536.0,0.09886661]
[1727061774881,0.19,64541.0,64530.0,0.45359487]
[1727061775221,0.3688,64543.0,64530.0,0.001]
[1727061775222,0.077485,64532.0,64530.0,0.001]
[1727061775487,0.55196,64536.0,64531.0,0.09941384]
[1727061775676,0.62828,64536.0,64535.0,0.001]
[1727061775880,0.07749,64527.0,64523.0,0.45159487]
[1727061776183,0.077492,64526.0,64524.0,0.09872199]
[1727061776486,0.077492,64526.0,64525.0,0.09872199]
[1727061776889,0.077492,64526.0,64525.0,0.45952199]
[1727061778582,0.01522341,64531.0,64525.0,0.45952199]
[1727061778887,0.43828,64536.0,64525.0,0.45952199]
[1727061778888,0.43828,64536.0,64527.0,0.07549821]
[1727061779088,0.3608,64536.0,64530.0,0.43629821]
[1727061779396,1.5,64535.0,64531.0,0.17418272]
[1727061779582,1.5,64535.0,64531.0,0.07549821]
[1727061779883,0.077482,64534.0,64531.0,0.07549821]
[1727061780091,1.5,64535.0,64531.0,0.07549821]
[1727061780390,0.37268675,64537.0,64531.0,0.07549821]
[1727061780587,0.003,64535.0,64531.0,0.07649821]
[1727061780790,0.003,64535.0,64531.0,0.001]
[1727061781594,0.003,64535.0,64531.0,0.07649821]
[1727061781891,0.003,64535.0,64534.0,0.07549821]
[1727061782099,0.003,64535.0,64534.0,0.09850121]
[1727061782388,0.003,64535.0,64534.0,0.28850121]
[1727061782686,0.003,64535.0,64534.0,0.28822873]
[1727061782916,0.003,64535.0,64534.0,0.36571073]
[1727061783100,0.07747,64545.0,64534.0,0.36571073]
[1727061783101,0.07747,64545.0,64534.0,0.28822873]
[1727061783286,0.495,64551.0,64544.0,0.19]
[1727061783287,0.077466,64548.0,64544.0,0.19]
[1727061783688,0.3608,64551.0,64544.0,0.19]
[1727061783889,0.3608,64551.0,64544.0,0.26539496]
[1727061784198,0.3608,64551.0,64544.0,0.26747]
[1727061784199,0.438262,64551.0,64544.0,0.26747]
[1727061784393,0.003,64545.0,64544.0,0.26747]
[1727061784789,0.31961728,64551.0,64544.0,0.28753062]
[1727061785098,0.077447,64563.0,64550.0,0.19]
[1727061785395,0.3608,64567.0,64558.0,0.19]
[1727061785582,0.1342,64574.0,64566.0,0.19]
[1727061785583,0.077434,64574.0,64566.0,0.19]
[1727061785787,0.0023241,64575.0,64573.0,0.19]
[1727061786303,0.0023241,64575.0,64574.0,0.23370201]
[1727061786794,0.3608,64582.0,64574.0,0.59450201]
[1727061786990,0.1384,64589.0,64574.0,0.59450201]
[1727061786991,0.1384,64589.0,64580.0,0.3608]
[1727061787195,0.077421,64585.0,64580.0,0.3608]
[1727061787499,0.1384,64589.0,64580.0,0.3608]
[1727061787693,0.077414,64591.0,64580.0,0.3608]
[1727061787900,0.1384,64600.0,64580.0,0.3608]
[1727061788085,0.36312331,64601.0,64590.0,0.19]
[1727061788396,0.36312331,64601.0,64591.0,0.23285173]
[1727061788903,0.36312331,64601.0,64592.0,0.438212]
[1727061789087,0.36312331,64601.0,64597.0,0.19]
[1727061789698,0.36312331,64601.0,64592.0,0.629012]
[1727061789699,0.44052531,64601.0,64592.0,0.629012]
[1727061789899,0.44052531,64601.0,64592.0,0.628212]
[1727061790088,0.44052531,64601.0,64592.0,0.5508]
[1727061790089,0.077403,64600.0,64592.0,0.5508]
[1727061790293,0.077403,64600.0,64597.0,0.001]
[1727061790890,0.077403,64600.0,64592.0,0.55268]
[1727061791086,0.077403,64600.0,64592.0,0.5518]
[1727061791493,0.077403,64600.0,64597.0,0.001]
[1727061792298,0.00232331,64601.0,64594.0,0.3608]
[1727061792299,0.077408,64596.0,64594.0,0.3608]
[1727061793799,0.077408,64596.0,64594.0,0.3618]
[1727061794706,0.077408,64596.0,64594.0,0.3628]
[1727061795099,0.077408,64596.0,64594.0,0.002]
[1727061795404,0.3608,64597.0,64594.0,0.002]
[1727061796290,0.438207,64597.0,64594.0,0.002]
[1727061796491,0.3608,64597.0,64594.0,0.002]
[1727061797203,0.077408,64596.0,64594.0,0.002]
[1727061797505,0.077408,64596.0,64594.0,0.001]
[1727061797798,0.077408,64596.0,64594.0,0.002]
[1727061798500,1.51576583,64601.0,64594.0,0.002]
[1727061798713,1.50232331,64601.0,64594.0,0.002]
[1727061798894,0.00232331,64601.0,64594.0,0.3628]
[1727061799701,0.00232331,64601.0,64594.0,0.3618]
[1727061799892,0.00232331,64601.0,64594.0,0.3628]
[1727061800091,0.00232331,64601.0,64597.0,0.19]
[1727061800696,0.00232331,64601.0,64594.0,0.3628]
[1727061800897,0.00232331,64601.0,64594.0,0.002]
[1727061801200,0.01235263,64605.0,64594.0,0.002]
[1727061801506,0.077409,64595.0,64594.0,0.001]
[1727061802297,0.077403,64601.0,64594.0,0.001]
[1727061802501,0.37323522,64606.0,64594.0,0.001]
[1727061802703,0.3608,64600.0,64594.0,0.001]
[1727061803000,0.19,64605.0,64594.0,0.002]
[1727061803001,0.077409,64595.0,64594.0,0.002]
[1727061803396,0.077409,64595.0,64594.0,0.001]